bitfinex/quotes_ETHUSD_20250721
["timestamp","ask_amount","ask_price","bid_price","bid_amount"]
[1753110687438,0.1296,3839.5,3839.3,3.0493355]
[1753110687646,0.1296,3839.5,3839.4,0.4447]
[1753110688152,0.7739,3839.9,3839.4,0.4447]
[1753110688307,0.1296,3839.7,3839.5,0.4447]
[1753110688508,0.1296,3839.7,3839.1,0.1296]
[1753110688509,0.1296,3839.7,3839.2,0.4447]
[1753110688746,2.60437013,3839.7,3839.0,0.7777]
[1753110688904,0.1296,3839.3,3839.0,3.7777]
[1753110689106,0.1296,3839.3,3839.0,0.4447]
[1753110689444,0.1296,3839.3,3838.9,4.083]
[1753110689660,0.1296,3839.3,3838.9,7.1326047]
[1753110690004,0.1296,3839.3,3838.9,4.5277]
[1753110690236,0.1296,3839.3,3839.0,0.07756306]
[1753110690547,2.60477716,3839.1,3839.0,0.07756306]
[1753110690851,2.60491286,3838.9,3838.0,4.15761313]
[1753110691018,0.55,3838.9,3838.0,4.15761313]
[1753110691222,0.55,3838.9,3838.1,0.4647]
[1753110691421,4.083,3839.0,3838.5,2.60617178]
[1753110691624,0.1296,3838.6,3838.5,0.4457]
[1753110692157,0.1296,3838.6,3838.5,3.05088431]
[1753110692358,0.1296,3838.6,3838.5,0.001]
[1753110692588,0.1296,3838.6,3838.5,2.60618431]
[1753110692783,0.56156324,3839.3,3838.5,1.80482704]
[1753110692924,0.1296,3839.2,3839.1,2.60477716]
[1753110693124,0.56156324,3839.9,3839.4,2.60457363]
[1753110693366,0.56156324,3839.9,3839.7,2.60437013]
[1753110693565,0.69116324,3840.2,3839.9,2.60423448]
[1753110693771,0.56156324,3840.1,3839.9,2.60423448]
[1753110694075,0.002,3840.0,3839.9,3.04893448]
[1753110694369,0.002,3840.0,3839.9,3.20457682]
[1753110694535,0.002,3840.0,3839.9,7.28757682]
[1753110694747,0.002,3840.0,3839.9,8.25072869]
[1753110695068,0.002,3840.0,3839.9,9.02092869]
[1753110695225,0.002,3840.0,3839.9,12.02092869]
[1753110695740,0.56156324,3840.7,3840.6,3.43135982]
[1753110696059,0.002,3840.8,3840.7,2.73329203]
[1753110696246,0.002,3840.8,3840.7,3.17799203]
[1753110696423,0.002,3840.8,3840.7,4.24722721]
[1753110696826,0.002,3840.8,3840.7,7.24722721]
[1753110697276,0.002,3840.8,3840.7,6.17799203]
[1753110697475,0.002,3840.8,3840.7,10.28602895]
[1753110697771,0.002,3840.8,3840.7,10.25999203]
[1753110698078,0.002,3840.8,3840.7,7.6563]
[1753110698293,0.002,3840.8,3840.7,10.25999203]
[1753110699374,0.002,3840.8,3840.7,7.6563]
[1753110699575,0.002,3840.8,3840.7,10.25999203]
[1753110699724,0.002,3840.8,3840.7,7.6563]
[1753110699931,0.002,3840.8,3840.7,0.1296]
[1753110700153,0.002,3840.8,3840.5,2.60382698]
[1753110700359,0.002,3840.8,3840.6,4.5267]
[1753110700555,0.002,3840.8,3840.7,2.62972895]
[1753110700739,0.002,3840.8,3840.7,0.60033692]
[1753110700945,0.002,3840.8,3840.7,0.1296]
[1753110701125,0.002,3840.8,3840.7,4.082]
[1753110701362,0.002,3840.8,3840.7,7.13039203]
[1753110701879,0.002,3840.8,3840.7,4.6563]
[1753110702093,0.002,3840.8,3840.7,7.28602895]
[1753110702227,0.002,3840.8,3840.3,2.60394837]
[1753110702426,0.002,3840.8,3840.4,4.2116]
[1753110702641,0.002,3840.8,3840.7,2.60369203]
[1753110703183,0.002,3840.8,3840.7,10.70757399]
[1753110707674,0.002,3840.8,3840.7,4.081]
[1753110707880,2.73333452,3840.7,3840.6,4.081]
[1753110708169,2.73333452,3840.7,3840.1,0.9124]
[1753110708170,2.60387045,3840.5,3840.1,0.1296]
[1753110708330,2.60390137,3840.4,3839.8,3.42785478]
[1753110708529,2.60390137,3840.4,3839.9,4.081]
[1753110708779,0.1296,3840.5,3840.0,3.0]
[1753110708956,0.1296,3840.5,3839.8,0.8236]
[1753110709269,0.1296,3840.2,3840.0,3.0]
[1753110709632,0.1296,3840.2,3840.1,4.08]
[1753110710449,0.1296,3840.2,3839.8,0.07295706]
[1753110710654,0.1296,3840.2,3839.9,4.08]
[1753110710956,0.1296,3840.2,3839.9,6.68423387]
[1753110711159,0.1296,3840.2,3839.9,4.08]
[1753110711355,0.1296,3840.2,3839.8,0.07295706]
[1753110711554,3.82644893,3840.1,3839.8,0.07295706]
[1753110711783,0.55,3839.9,3839.8,0.07295706]
[1753110711945,3.92613448,3839.9,3839.8,0.07295706]
[1753110712146,4.37653448,3839.9,3839.8,0.07295706]
[1753110712481,8.45753448,3839.9,3839.8,0.07295706]
[1753110712684,1.3219,3839.9,3839.8,0.07295706]
[1753110712844,0.7719,3839.9,3839.8,0.07295706]
[1753110713039,1.2223,3839.9,3839.8,0.07295706]
[1753110713684,3.05495165,3839.9,3839.8,0.07295706]
[1753110713857,3.60495165,3839.9,3839.8,0.07295706]
[1753110714180,1.7723,3839.9,3839.8,0.07295706]
[1753110716483,1.3219,3839.9,3839.8,0.07295706]
[1753110717666,1.7723,3839.9,3839.8,0.07295706]
[1753110718979,1.7723,3839.9,3839.8,0.07395706]
[1753110719774,1.3219,3839.9,3839.8,0.07395706]
[1753110719970,0.55,3840.2,3839.8,0.07395706]
[1753110720170,0.8053,3840.3,3839.8,0.07395706]
[1753110720356,0.1296,3840.0,3839.9,3.05638177]
[1753110720556,0.1296,3840.0,3839.9,3.59646112]
[1753110720883,0.1296,3840.3,3840.1,2.60404918]
[1753110721052,0.1296,3840.3,3840.2,2.94413104]
[1753110721252,0.002,3840.8,3840.6,2.60375627]
[1753110721449,0.002,3840.8,3840.5,0.7871]
[1753110721797,0.8211,3840.7,3839.9,4.081]
[1753110721994,0.1296,3840.3,3839.8,0.07395706]
[1753110722305,0.4029465,3840.3,3839.8,3.07395706]
[1753110722512,0.4029465,3840.3,3839.9,2.60423448]
[1753110722802,0.55,3840.6,3839.8,0.07395706]
[1753110723107,0.1296,3840.0,3839.8,0.07395706]
[1753110723997,0.1296,3840.0,3839.9,2.60423448]
[1753110724298,0.1296,3840.4,3839.9,3.05643448]
[1753110724500,0.1296,3840.4,3839.9,2.60423448]
[1753110724704,2.73349808,3840.4,3839.8,2.67823667]
[1753110725175,0.74542948,3840.4,3839.8,2.67823667]
[1753110725506,0.74542948,3840.4,3839.8,0.07395706]
[1753110725726,0.74542948,3840.4,3840.1,2.60405664]
[1753110725727,0.1296,3840.4,3840.1,2.60405664]
[1753110726029,0.1296,3840.4,3839.8,0.07395706]
[1753110726030,0.1296,3840.4,3840.0,2.60415376]
[1753110726213,0.1296,3840.4,3839.8,0.07395706]
[1753110726512,0.1296,3840.0,3839.8,0.07395706]
[1753110727865,0.1296,3840.0,3839.8,2.6782582]
[1753110728064,0.1296,3840.0,3839.8,0.07395706]
[1753110729125,2.73378696,3840.0,3839.8,0.07395706]
[1753110729427,3.26757498,3840.0,3839.8,0.07395706]
[1753110730088,3.26756776,3840.0,3839.8,0.07395706]
[1753110730287,0.1296,3840.0,3839.8,0.07395706]
[1753110732462,0.1296,3840.0,3839.9,2.60423448]
[1753110732649,0.1296,3840.0,3839.8,3.13044597]
[1753110732835,0.1296,3840.0,3839.8,0.52615706]
[1753110733436,0.1296,3840.0,3839.8,3.13045299]
[1753110733736,0.1296,3840.0,3839.8,0.52615706]
[1753110734049,0.1296,3840.5,3839.9,1.26944234]
[1753110734384,0.1296,3840.7,3840.5,2.60382558]
[1753110734533,0.1296,3840.7,3840.5,7.13599772]
[1753110734738,0.1296,3840.7,3840.6,2.60375982]
[1753110734935,0.1296,3840.7,3840.5,7.13600795]
[1753110735173,0.1296,3840.7,3840.6,2.60375982]
[1753110735638,0.002,3840.8,3840.7,2.60369203]
[1753110735837,0.002,3840.8,3840.7,3.05589203]
[1753110736277,0.002,3840.8,3840.7,0.4522]
[1753110736885,0.002,3840.8,3840.7,3.05589203]
[1753110737242,0.002,3840.8,3840.7,3.88159203]
[1753110737455,0.002,3840.8,3840.7,4.94073681]
[1753110737995,0.002,3840.8,3840.7,7.94073681]
[1753110739283,0.002,3840.8,3840.7,7.48853681]
[1753110739480,0.002,3840.8,3840.7,11.56853681]
[1753110741173,0.002,3840.8,3840.7,12.02563681]
[1753110743079,0.002,3840.8,3840.7,12.09748939]
[1753110743288,0.002,3840.8,3840.7,12.09747294]
[1753110744776,0.002,3840.8,3840.7,6.95832816]
[1753110744994,0.002,3840.8,3840.7,11.03732816]
[1753110746896,0.002,3840.8,3840.7,6.95832816]
[1753110747051,0.002,3840.8,3840.7,11.03632816]
[1753110747453,0.002,3840.8,3840.7,6.50122816]
[1753110747665,0.002,3840.8,3840.7,10.57922816]
[1753110747882,0.002,3840.8,3840.7,9.75352816]
[1753110748948,0.002,3840.8,3840.7,5.67552816]
[1753110749173,0.002,3840.8,3840.7,9.75352816]
[1753110749763,0.002,3840.8,3840.7,0.07183613]
[1753110749993,0.002,3840.8,3840.7,4.14983613]
[1753110750179,0.002,3840.8,3840.7,0.07183613]
[1753110750385,0.002,3840.8,3840.7,4.14983613]
[1753110750556,0.002,3840.8,3840.7,0.07183613]
[1753110750756,0.002,3840.8,3840.7,4.14983613]
[1753110752065,0.002,3840.8,3840.7,7.21062816]
[1753110752273,0.002,3840.8,3840.7,11.42711177]
[1753110753474,0.002,3840.8,3840.7,11.55671177]
[1753110753675,0.02,3840.9,3840.7,11.55671177]
[1753110753676,0.02,3840.9,3840.8,5.60362424]
[1753110753875,0.002,3841.5,3841.3,0.8316]
[1753110754213,0.002,3841.5,3841.4,9.70624974]
[1753110754383,0.002,3841.5,3841.4,10.40988889]
[1753110756001,1e-08,3841.5,3841.4,11.18028889]
[1753110757039,1e-08,3841.6,3841.5,6.37354981]
[1753110757316,1e-08,3841.6,3841.5,12.16465508]
[1753110757487,1e-08,3841.9,3841.8,6.37334653]
[1753110757692,1e-08,3841.9,3841.8,10.60597599]
[1753110757889,0.002,3842.5,3842.3,2.60260781]
[1753110758104,0.002,3843.1,3843.0,6.37253374]
[1753110758286,0.002,3843.1,3843.0,7.39960928]
[1753110758493,0.002,3843.1,3843.0,11.93270928]
[1753110758875,0.002,3843.1,3843.0,0.1296]
[1753110759109,0.002,3843.1,3843.0,10.13523374]
[1753110759486,0.002,3843.1,3843.0,9.67813374]
[1753110759686,0.002,3843.1,3843.0,10.13523374]
[1753110761337,1e-08,3843.7,3843.6,3.38392754]
[1753110761539,1e-08,3843.7,3843.6,10.82433756]
[1753110761839,1e-08,3843.7,3843.6,11.25542029]
[1753110762544,0.002,3844.8,3843.6,11.25542029]
[1753110762545,0.69833086,3845.7,3845.6,2.60037445]
[1753110762845,0.70033086,3845.8,3845.3,2.60057732]
[1753110762996,0.70033086,3845.8,3845.5,2.60038792]
[1753110763196,0.70033086,3845.8,3845.6,4.075]
[1753110763393,0.70033086,3845.8,3845.2,0.4571]
[1753110763394,0.70033086,3845.8,3845.3,3.0]
[1753110763665,0.69833086,3845.7,3845.4,4.075]
[1753110763833,0.69833086,3845.7,3845.5,3.02600442]
[1753110764037,0.70033086,3845.8,3845.6,4.075]
[1753110764200,0.55848379,3845.7,3845.6,2.6707418]
[1753110764403,0.2439525,3845.7,3845.6,1.96853685]
[1753110764616,0.2439525,3845.7,3844.8,3.8251]
[1753110764617,1.39268259,3845.7,3845.3,2.60057135]
[1753110764938,0.92847475,3845.6,3845.5,3.39564207]
[1753110765122,0.93047475,3845.8,3845.7,2.60030683]
[1753110765436,0.93047475,3845.8,3845.7,6.70030989]
[1753110765640,0.002,3845.8,3845.7,7.15740989]
[1753110765836,0.002,3845.8,3845.7,7.13140683]
[1753110767197,0.002,3845.8,3845.7,10.64982814]
[1753110768158,1.39268259,3846.2,3846.1,2.6000364]
[1753110768358,1.39268259,3846.3,3846.2,5.5999688]
[1753110768518,1.39268259,3846.6,3846.5,2.59976602]
[1753110768725,1.39268259,3846.6,3846.5,7.90376602]
[1753110769261,0.69610158,3846.8,3846.5,5.4336]
[1753110769449,0.71610158,3846.9,3846.7,0.1296]
[1753110769633,0.71610158,3846.9,3846.8,6.67156327]
[1753110769840,0.71610158,3846.9,3846.8,7.14466327]
[1753110770023,0.71610158,3846.9,3846.8,4.5451]
[1753110770363,0.02,3846.9,3846.8,4.072]
[1753110770863,0.02,3846.9,3846.8,4.5451]
[1753110771053,0.02,3846.9,3846.8,4.57109563]
[1753110771251,0.71596744,3846.9,3846.7,0.1296]
[1753110771441,0.69596744,3846.8,3846.7,0.1296]
[1753110771636,0.71596744,3846.9,3846.8,2.59956327]
[1753110772031,0.02,3846.9,3846.7,0.1296]
[1753110772230,0.02,3846.9,3846.8,4.071]
[1753110772436,0.7159139,3846.9,3846.8,7.14366327]
[1753110772781,0.6959139,3847.1,3847.0,2.59942812]
[1753110772943,1.39268259,3847.7,3847.6,2.59902276]
[1753110773128,1.39268259,3847.7,3847.6,6.67002276]
[1753110773329,1.39268259,3847.7,3847.6,7.95832276]
[1753110773529,1.39268259,3847.8,3847.7,2.59895522]
[1753110773726,1.41268259,3847.9,3847.8,2.59888767]
[1753110774046,0.02,3847.9,3847.8,7.14298767]
[1753110774442,0.02,3847.9,3847.8,8.19870196]
[1753110774628,0.02,3847.9,3847.8,11.19870196]
[1753110775153,0.02,3847.9,3847.8,11.38937992]
[1753110775579,1.39468259,3848.5,3848.3,2.59855]
[1753110775783,1.39468259,3848.5,3848.4,4.07]
[1753110775963,4.02301231,3848.5,3848.4,4.07]
[1753110776170,0.55,3848.4,3847.4,0.4731]
[1753110776370,1.39038393,3848.0,3847.6,2.59902276]
[1753110776549,1.39038393,3848.0,3847.7,4.09598955]
[1753110776747,1.39038393,3848.0,3847.7,2.62493221]
[1753110776995,1.52942232,3848.0,3847.9,2.59882013]
[1753110777291,0.55,3848.1,3847.6,0.4731]
[1753110777454,1.94038393,3848.1,3847.0,0.61334371]
[1753110777648,1.94038393,3848.1,3847.2,3.0]
[1753110777976,0.55,3847.9,3847.5,2.59904224]
[1753110778175,2.13442232,3847.9,3847.6,4.09499022]
[1753110778377,2.13442232,3847.9,3847.6,4.14604609]
[1753110778580,0.74403839,3847.9,3847.7,0.05105454]
[1753110778876,0.74403839,3847.9,3847.8,4.069]
[1753110779073,0.55,3848.0,3847.8,4.069]
[1753110779273,1.39038393,3848.2,3847.9,0.0259882]
[1753110779477,0.55,3848.1,3847.9,0.05280349]
[1753110779656,1.94097335,3848.0,3847.9,0.05280349]
[1753110779857,1.0233,3848.0,3847.9,4.12180349]
[1753110780073,2.77652169,3848.0,3847.9,4.12180349]
[1753110780268,3.98425162,3848.0,3847.9,4.12180349]
[1753110780468,1.38549903,3848.0,3847.9,4.12180349]
[1753110780692,1.0233,3848.0,3847.9,0.05280349]
[1753110780877,0.55,3847.7,3847.0,5.59936267]
[1753110781082,4.54064267,3847.7,3846.9,2.59944308]
[1753110781257,0.55,3847.5,3847.0,4.069]
[1753110781453,0.55,3847.3,3847.0,4.069]
[1753110781759,1.0233,3847.3,3847.1,4.131464]
[1753110781994,1.0233,3847.2,3847.1,4.069]
[1753110782293,0.45407109,3847.4,3847.3,2.59922543]
[1753110782493,1.94342589,3847.4,3847.1,4.069]
[1753110782679,2.41672589,3847.4,3847.1,4.069]
[1753110782882,0.4733,3847.3,3847.1,4.069]
[1753110783199,0.55,3847.2,3847.1,4.069]
[1753110783981,0.55,3847.2,3846.8,0.15559563]
[1753110784184,0.55,3847.0,3846.9,4.069]
[1753110784988,0.55,3847.0,3846.9,2.59949569]
[1753110785193,0.55,3847.2,3846.9,2.59949569]
[1753110785386,0.55,3847.2,3846.8,6.79714281]
[1753110785699,0.55,3847.2,3846.8,4.1976]
[1753110785888,0.75750259,3847.2,3846.8,6.82315419]
[1753110786084,0.75750259,3847.2,3846.8,4.1976]
[1753110786302,0.75750259,3847.2,3846.8,4.22359563]
[1753110787094,2.15092848,3847.2,3846.8,7.01691761]
[1753110787396,2.62422848,3847.2,3846.9,2.59949486]
[1753110787564,0.55,3847.0,3846.9,4.068]
[1753110788372,0.15256779,3847.1,3846.9,6.66749569]
[1753110788573,0.1316,3847.4,3846.9,4.068]
[1753110788805,0.4733,3847.3,3846.9,6.66749195]
[1753110789362,0.1316,3847.4,3846.9,6.66749195]
[1753110789563,0.85129413,3847.4,3846.9,4.068]
[1753110790013,0.4733,3847.3,3846.9,4.068]
[1753110790197,0.37799413,3847.4,3846.9,4.068]
[1753110790396,0.37799413,3847.4,3846.8,2.75514841]
[1753110790709,0.55,3847.3,3846.9,4.068]
[1753110790867,0.69012941,3847.3,3846.9,4.068]
[1753110791701,0.69012941,3847.3,3846.9,6.66747742]
[1753110792067,0.69012941,3847.3,3846.9,4.068]
[1753110793200,0.55,3847.1,3846.8,4.068]
[1753110793367,0.6796,3847.1,3846.8,6.66755707]
[1753110793565,0.88939294,3847.1,3846.8,6.66755707]
[1753110793901,0.88939294,3847.1,3846.6,2.65565678]
[1753110794075,0.55,3846.9,3846.7,4.12397842]
[1753110794280,0.55,3847.0,3846.7,4.12397842]
[1753110794481,0.55,3847.0,3846.8,2.59951048]
[1753110794691,0.55,3847.0,3846.7,4.12397842]
[1753110795067,0.55,3847.0,3846.7,6.72360414]
[1753110796204,0.55,3846.9,3846.7,0.05597842]
[1753110796412,14.29117304,3846.8,3846.7,0.05597842]
[1753110796580,18.28273398,3846.8,3846.7,0.05597842]
[1753110796786,6.9668688,3846.2,3846.1,0.02]
[1753110796983,22.37135376,3846.2,3846.1,0.02]
[1753110797179,22.37135376,3846.2,3845.6,0.001]
[1753110797180,6.96720683,3845.7,3845.6,0.001]
[1753110797697,11.46600683,3845.7,3845.6,0.001]
[1753110798028,1.92666094,3845.7,3845.6,0.001]
[1753110798318,0.8089,3846.1,3845.7,2.60026514]
[1753110798472,0.55,3846.0,3845.6,0.49100374]
[1753110799015,0.1296,3846.1,3845.7,3.06430683]
[1753110799223,0.1296,3846.4,3845.9,2.60013571]
[1753110799513,0.48519639,3846.3,3846.0,0.49000104]
[1753110799815,0.55,3846.3,3846.2,2.5999688]
[1753110800109,1.31396094,3846.9,3846.0,0.02600104]
[1753110800275,0.7542,3846.9,3846.3,2.59985561]
[1753110800614,0.7542,3846.9,3846.5,2.59976176]
[1753110800817,1.10299319,3847.0,3846.9,2.59949569]
[1753110800818,0.16922929,3847.0,3846.9,2.59949569]
[1753110800995,0.8013,3847.3,3846.4,0.02599833]
[1753110800996,1.7350639,3847.3,3846.8,0.1296]
[1753110801201,0.58050639,3847.3,3847.0,2.59939101]
[1753110801400,0.58050639,3847.3,3846.9,3.06343613]
[1753110801712,0.58050639,3847.3,3846.9,0.464]
[1753110801910,0.58050639,3847.3,3847.0,2.59942812]
[1753110802083,1.0653639,3847.4,3847.3,2.59922543]
[1753110802408,1.0653639,3847.4,3846.8,0.1296]
[1753110802409,0.002,3847.4,3847.2,2.59924219]
[1753110802720,0.002,3847.4,3847.3,2.59922543]
[1753110803286,0.002,3847.4,3847.1,0.1555936]
[1753110803504,0.4338,3847.4,3847.1,0.1296]
[1753110803850,0.55,3847.2,3846.8,0.1296]
[1753110803988,1.3434,3847.2,3845.9,0.464]
[1753110804183,0.55,3846.8,3846.6,0.1296]
[1753110804384,0.55,3846.8,3846.3,0.1296]
[1753110804585,0.4318,3846.7,3846.3,0.1296]
[1753110804817,3.14976044,3846.6,3846.3,0.1296]
[1753110805000,2.5998167,3846.5,3846.1,0.1296]
[1753110805220,0.4318,3846.5,3846.1,0.1296]
[1753110805420,0.55,3846.6,3846.1,2.72960652]
[1753110805608,1.32172926,3846.6,3846.1,2.72960652]
[1753110805816,1.32172926,3846.6,3846.1,2.73060652]
[1753110806429,1.32172926,3846.6,3846.2,2.5999688]
[1753110807001,1.32172926,3846.6,3846.2,2.59995291]
[1753110807406,0.55,3846.6,3846.2,2.59995291]
[1753110807610,0.55,3846.6,3846.1,2.75663405]
[1753110807828,0.9337639,3847.0,3846.9,2.59949569]
[1753110808015,0.9337639,3847.3,3847.1,2.59935578]
[1753110808330,0.7577,3847.6,3847.0,0.464]
[1753110808331,0.9337639,3847.5,3847.0,0.464]
[1753110808632,0.9337639,3847.5,3847.1,0.0259936]
[1753110808791,0.9337639,3847.5,3847.2,2.59929299]
[1753110808987,1.0633639,3847.6,3847.1,0.0259936]
[1753110809188,1.0633639,3847.6,3847.3,2.59922543]
[1753110809505,0.9337639,3847.7,3847.3,2.59922543]
[1753110809841,0.9337639,3847.8,3847.3,3.87162543]
[1753110810129,0.9337639,3847.7,3847.3,3.87162543]
[1753110810333,0.9337639,3847.8,3847.2,0.15559292]
[1753110810535,1.4837639,3847.6,3846.7,2.59958501]
[1753110810755,2.59949241,3847.0,3846.6,4.1966]
[1753110810896,2.59949241,3847.0,3846.6,0.1296]
[1753110811242,0.55,3847.1,3846.6,0.1296]
[1753110811441,0.55,3847.1,3846.7,0.0259963]
[1753110811595,0.72639403,3847.1,3846.6,0.1296]
[1753110811928,0.72639403,3847.1,3846.6,0.5936]
[1753110812131,0.72639403,3847.1,3846.7,3.08960929]
[1753110812434,0.72639403,3847.1,3846.6,0.1296]
[1753110812727,0.55,3846.9,3846.6,0.1296]
[1753110812933,0.55,3846.9,3846.6,2.72929466]
[1753110813131,0.55,3847.0,3846.6,0.1296]
[1753110813336,0.98890604,3847.0,3846.6,0.1296]
[1753110813638,0.55,3846.9,3846.6,0.1296]
[1753110813798,0.55,3847.0,3846.6,0.1296]
[1753110814336,3.1494594,3847.0,3846.6,0.1296]
[1753110814538,0.55,3846.8,3846.6,0.1296]
[1753110814718,0.55,3846.8,3846.4,0.15559833]
[1753110814922,0.55,3846.8,3846.4,0.1296]
[1753110815096,0.55,3846.7,3846.4,0.1296]
[1753110815295,0.55,3846.7,3846.4,0.15559833]
[1753110815619,1.3582,3846.9,3846.4,0.1296]
[1753110815825,0.55,3846.6,3846.4,0.1296]
[1753110816134,2.59974319,3846.6,3846.4,0.1296]
[1753110816436,0.55,3846.7,3846.4,0.1296]
[1753110816644,0.55,3846.7,3846.1,0.001]
[1753110816645,0.4318,3846.6,3846.1,0.001]
[1753110816800,0.55,3846.3,3846.1,0.1306]
[1753110817538,0.55,3846.3,3846.1,0.001]
[1753110817721,0.1296,3846.3,3846.1,0.001]
[1753110818304,0.55,3846.2,3846.1,0.001]
[1753110818702,2.85937143,3846.8,3846.1,3.09101349]
[1753110818926,0.6796,3846.7,3846.2,2.59995795]
[1753110819600,0.55,3846.5,3846.1,0.1306]
[1753110820202,2.59977133,3846.5,3846.1,0.1306]
[1753110820629,0.55,3846.6,3846.1,2.73058482]
[1753110820938,0.55,3846.6,3846.3,2.59984713]
[1753110821097,0.55,3846.6,3846.4,2.59983252]
[1753110821304,0.55,3846.6,3846.3,2.59989343]
[1753110821737,0.55,3846.6,3846.2,3.06394953]
[1753110822450,0.1296,3846.7,3846.3,2.5999012]
[1753110822746,0.1296,3846.7,3846.3,0.464]
[1753110823423,0.1296,3846.7,3846.1,0.15660036]
[1753110824030,0.002,3847.4,3846.3,2.5998783]
[1753110824229,0.002,3847.4,3847.2,0.8316]
[1753110824445,0.002,3847.4,3847.3,0.02599225]
[1753110824644,0.002,3847.4,3846.8,7.4971565]
[1753110824946,0.002,3847.4,3846.9,2.72908717]
[1753110825242,0.1296,3847.5,3846.9,2.72908717]
[1753110825243,0.1296,3847.5,3846.9,0.1296]
[1753110825448,0.40246023,3847.5,3846.9,0.15559495]
[1753110825654,0.1296,3847.5,3847.0,2.59940914]
[1753110825944,0.1296,3847.5,3846.9,0.1296]
[1753110826706,0.1296,3847.5,3846.9,0.15559495]
[1753110826905,0.1296,3847.5,3847.0,2.59940548]
[1753110827452,0.1296,3847.5,3847.0,3.05040548]
[1753110827747,0.1316,3847.5,3847.0,3.05040548]
[1753110827960,0.1316,3847.5,3846.9,0.1296]
[1753110828248,0.55,3847.2,3846.2,4.517]
[1753110828564,0.1296,3847.0,3846.5,2.59970898]
[1753110828719,0.1296,3847.0,3846.6,2.59969409]
[1753110828931,0.1296,3847.0,3846.7,2.59962452]
[1753110829440,0.1296,3847.0,3846.3,0.1296]
[1753110829641,3.14950781,3846.9,3846.2,4.066]
[1753110829834,0.1296,3846.7,3846.2,3.0]
[1753110830436,0.1296,3846.7,3846.1,4.2166]
[1753110830639,3.71914642,3846.6,3846.1,0.1506]
[1753110830846,3.1499688,3846.2,3846.1,0.021]
[1753110831157,3.7193688,3846.2,3846.1,0.021]
[1753110831450,4.52531249,3846.2,3846.1,0.021]
[1753110832008,1.76714369,3846.2,3846.1,0.021]
[1753110832235,0.5694,3846.2,3846.1,0.021]
[1753110832546,0.699,3846.2,3846.1,0.021]
[1753110833956,1.249,3846.2,3846.1,0.021]
[1753110834856,0.1296,3846.2,3846.1,0.021]
[1753110838250,0.1296,3846.2,3846.1,2.6210364]
[1753110838621,0.5694,3846.7,3846.1,0.472]
[1753110838824,0.1296,3846.6,3846.1,0.472]
[1753110839048,0.5694,3847.4,3846.8,2.59954257]
[1753110839251,2.59930592,3847.2,3846.5,3.20632009]
[1753110839465,2.59929594,3847.2,3846.5,0.5806]
[1753110839674,0.1296,3847.0,3846.5,0.5806]
[1753110839845,0.1296,3847.0,3846.6,2.5996913]
[1753110840450,0.1296,3847.0,3846.6,3.0506913]
[1753110840661,0.1296,3847.0,3846.5,0.1296]
[1753110840864,2.59953645,3846.9,3846.3,4.065]
[1753110841073,0.1296,3846.8,3846.3,4.065]
[1753110841238,0.1296,3846.8,3846.4,2.59983361]
[1753110841460,0.1296,3846.8,3846.4,3.05079954]
[1753110841653,0.1296,3846.8,3846.2,3.1296]
[1753110841860,0.1296,3846.8,3846.2,0.1296]
[1753110842073,0.1296,3846.8,3846.2,0.61391752]
[1753110842300,0.1296,3846.8,3846.3,2.59990078]
[1753110842597,0.1296,3846.8,3846.4,2.59980886]
[1753110842803,0.1296,3846.8,3846.2,2.72955936]
[1753110842957,0.1296,3846.8,3846.2,2.59995936]
[1753110842958,0.1296,3846.6,3846.2,2.59995936]
[1753110843158,0.1296,3846.6,3846.1,0.021]
[1753110843159,0.1296,3846.6,3846.1,2.62101702]
[1753110843382,0.1296,3846.6,3846.1,0.472]
[1753110843895,0.1296,3846.6,3846.1,3.07201615]
[1753110844059,0.1296,3846.6,3846.1,0.472]
[1753110844254,0.1296,3846.6,3846.1,3.07202138]
[1753110844564,0.1296,3846.6,3846.1,0.472]
[1753110844963,0.1296,3846.6,3846.4,2.59982282]
[1753110845802,0.1296,3846.6,3846.5,0.451]
[1753110845997,0.1296,3846.6,3846.1,2.62101287]
[1753110846206,0.1296,3846.6,3846.1,0.472]
[1753110846572,0.5694,3846.5,3846.1,0.021]
[1753110846969,0.5694,3846.5,3846.2,2.59990936]
[1753110847167,0.5694,3846.5,3846.1,0.021]
[1753110847402,0.5694,3846.5,3846.2,2.5999688]
[1753110848107,0.5694,3846.5,3846.1,3.0720204]
[1753110848290,0.5694,3846.5,3846.2,2.59996764]
[1753110848492,0.5694,3846.5,3846.1,3.07201603]
[1753110848703,2.59983361,3846.4,3846.1,0.021]
[1753110848871,0.1296,3846.3,3846.1,0.021]
[1753110849085,2.72950794,3846.3,3846.1,0.021]
[1753110849320,0.1296,3846.3,3846.1,0.021]
[1753110850119,2.72955112,3846.3,3846.1,0.021]
[1753110850496,3.1499688,3846.2,3846.1,0.021]
[1753110850826,0.55,3846.2,3846.1,0.021]
[1753110852301,0.1296,3846.3,3846.1,0.021]
[1753110852500,4.064,3846.2,3846.1,0.021]
[1753110852897,0.1296,3846.3,3846.1,0.021]
[1753110853099,0.1296,3846.3,3846.2,2.5999688]
[1753110853328,0.1296,3846.6,3846.4,2.59982038]
[1753110853526,0.1296,3846.6,3846.5,0.451]
[1753110855117,0.1296,3846.6,3846.5,3.05076602]
[1753110855311,0.1296,3846.6,3846.5,0.451]
[1753110856067,4.066,3847.5,3846.6,3.36668668]
[1753110856258,7.128696,3847.5,3846.7,0.4517]
[1753110856563,0.1296,3847.3,3846.7,2.59959223]
[1753110856769,0.1296,3847.3,3846.6,0.1296]
[1753110856976,0.1296,3847.3,3846.9,2.59949112]
[1753110857131,0.1296,3847.3,3846.9,3.05118468]
[1753110857472,0.1296,3847.3,3847.1,2.59934499]
[1753110857636,4.066,3847.5,3847.1,2.59936055]
[1753110857839,0.1316,3847.5,3847.2,0.4517]